fUST/lending_fUST_20251123
["ID","MTS","AMOUNT","RATE_DAILY","PERIOD"]
[394668122,1763850810887,-500.0,0.00046575,120]
[394668123,1763850810911,-516.08932213,0.00046575,120]
[394668124,1763850810934,-1000.0,0.00046575,120]
[394668125,1763850810962,-500.0,0.00046575,120]
[394668126,1763850810987,-500.0,0.00046575,120]
[394668127,1763850811010,-500.0,0.00046575,120]
[394668128,1763850811033,-500.0,0.00046575,120]
[394668129,1763850811057,-500.0,0.00046575,120]
[394668130,1763850811081,-500.0,0.00046575,120]
[394668131,1763850811106,-524.57644009,0.00046575,120]
[394668132,1763850811129,-500.0,0.00046575,120]
[394668133,1763850811155,-1359.05,0.00046575,120]
[394668134,1763850811179,-596.72179118,0.00046575,120]
[394668135,1763850811204,-500.0,0.00046575,120]
[394668136,1763850811228,-500.0,0.00046575,120]
[394668137,1763850811391,-500.0,0.00046575,120]
[394668138,1763850811415,-500.0,0.00046575,120]
[394668139,1763850811439,-637.99141982,0.00046575,120]
[394668140,1763850811462,-1834.27,0.00046575,120]
[394668141,1763850811487,-500.0,0.00046575,120]
[394668142,1763850811510,-500.0,0.00046575,120]
[394668143,1763850811534,-500.0,0.00046575,120]
[394668144,1763850811557,-500.0,0.00046575,120]
[394668145,1763850811582,-528.34841701,0.00046575,120]
[394668146,1763850811607,-500.0,0.00046575,120]
[394668147,1763850811632,-500.0,0.00046575,120]
[394668148,1763850811658,-500.0,0.00046575,120]
[394668149,1763850811682,-553.55,0.00046575,120]
[394668150,1763850811708,-500.0,0.00046575,120]
[394668151,1763850811733,-1101.51,0.00046575,120]
[394668152,1763850811757,-369.18429823,0.00046575,120]
[394668153,1763850811781,-522.45422184,0.00046575,120]
[394668154,1763850811806,-500.0,0.00046575,120]
[394668155,1763850811832,-500.0,0.00046575,120]
[394668156,1763850811859,-500.0,0.00046575,120]
[394668157,1763850811883,-500.0,0.00046575,120]
[394668158,1763850811907,-600.09,0.00046575,120]
[394668159,1763850811931,-542.89697205,0.00046575,120]
[394668160,1763850811955,-525.21400816,0.00046575,120]
[394668161,1763850811980,-500.0,0.00046575,120]
[394668162,1763850812004,-513.60142752,0.00046575,120]
[394668163,1763850812028,-500.0,0.00046575,120]
[394668164,1763850812053,-500.0,0.00046575,120]
[394668165,1763850812076,-500.0,0.00046575,120]
[394668166,1763850812099,-500.0,0.00046575,120]
[394668167,1763850812122,-1675.44,0.00046575,120]
[394668168,1763850812146,-500.0,0.00046575,120]
[394668169,1763850812170,-500.0,0.00046575,120]
[394668170,1763850812193,-500.0,0.00046575,120]
[394668171,1763850812218,-500.0,0.00046575,120]
[394668172,1763850812245,-507.17277707,0.00046575,120]
[394668173,1763850812270,-449.10071496,0.00046575,120]
[394668174,1763850812294,-500.0,0.00046575,120]
[394668175,1763850812318,-500.0,0.00046575,120]
[394668176,1763850812342,-503.33794288,0.00046575,120]
[394668177,1763850812366,-520.82392995,0.00046575,120]
[394668178,1763850812390,-529.25543244,0.00046575,120]
[394668179,1763850812415,-1457.17,0.00046575,120]
[394668180,1763850812439,-500.0,0.00046575,120]
[394668181,1763850812462,-433.61974082,0.00046575,120]
[394668182,1763850812485,-500.0,0.00046575,120]
[394668183,1763850812509,-369.5122307,0.00046575,120]
[394668184,1763850812532,-500.0,0.00046575,120]
[394668185,1763850812556,-500.0,0.00046575,120]
[394668186,1763850812579,-500.0,0.00046575,120]
[394668187,1763850812602,-581.41000082,0.00046575,120]
[394668188,1763850812626,-505.54,0.00046575,120]
[394668189,1763850812653,-500.0,0.00046575,120]
[394668190,1763850812680,-500.0,0.00046575,120]
[394668191,1763850812704,-500.0,0.00046575,120]
[394668192,1763850812730,-500.0,0.00046575,120]
[394668193,1763850812753,-500.0,0.00046575,120]
[394668194,1763850812777,-500.0,0.00046575,120]
[394668195,1763850812801,-500.0,0.00046575,120]
[394668196,1763850812826,-659.29,0.00046575,120]
[394668197,1763850812850,-644.49,0.00046575,120]
[394668198,1763850812873,-517.18346443,0.00046575,120]
[394668199,1763850812898,-1188.34,0.00046575,120]
[394668200,1763850812923,-500.0,0.00046575,120]
[394668201,1763850812947,-500.0,0.00046575,120]
[394668202,1763850812971,-509.8110529,0.00046575,120]
[394668203,1763850812996,-500.0,0.00046575,120]
[394668204,1763850813024,-500.0,0.00046575,120]
[394668205,1763850813048,-1338.25,0.00046575,120]
[394668206,1763850813076,-500.0,0.00046575,120]
[394668207,1763850813100,-507.02928381,0.00046575,120]
[394668208,1763850813129,-500.0,0.00046575,120]
[394668209,1763850813152,-500.0,0.00046575,120]
[394668210,1763850813175,-500.0,0.00046575,120]
[394668211,1763850813197,-500.0,0.00046575,120]
[394668212,1763850813221,-500.0,0.00046575,120]
[394668213,1763850813244,-533.35519466,0.00046575,120]
[394668214,1763850813268,-500.0,0.00046575,30]
[394668215,1763850813291,-500.0,0.00046575,120]
[394668216,1763850813315,-743.5,0.00046575,120]
[394668217,1763850813339,-500.0,0.00046575,120]
[394668218,1763850813364,-500.0,0.00046575,120]
[394668219,1763850813387,-500.0,0.00046575,120]
[394668220,1763850813411,-525.69212905,0.00046575,120]
[394668221,1763850813434,-484.07336023,0.00046575,120]
[394668222,1763850813459,-1252.72,0.00046575,120]
[394668223,1763850813484,-519.4549868,0.00046575,120]
[394668224,1763850813508,-506.04972316,0.00046575,120]
[394668225,1763850813532,-500.0,0.00046575,120]
[394668226,1763850813555,-500.0,0.00046575,120]
[394668227,1763850813579,-507.41132481,0.00046575,120]
[394668228,1763850813604,-1117.42,0.00046575,120]
[394668229,1763850813627,-500.0,0.00046575,120]
[394668230,1763850813652,-538.85885389,0.00046575,120]
[394668231,1763850813679,-508.47719231,0.00046575,120]
[394668232,1763850813703,-516.60608881,0.00046575,120]
[394668233,1763850813867,-500.0,0.00046575,120]
[394668234,1763850813894,-500.0,0.00046575,120]
[394668235,1763850813921,-500.0,0.00046575,120]
[394668236,1763850813947,-503.66,0.00046575,120]
[394668237,1763850813972,-502.34474327,0.00046575,120]
[394668238,1763850813998,-500.0,0.00046575,120]
[394668239,1763850814023,-500.0,0.00046575,120]
[394668240,1763850814049,-719.98,0.00046575,120]
[394668241,1763850814074,-500.0,0.00046575,120]
[394668242,1763850814098,-206.54548393,0.00046575,120]
[394668243,1763850814122,-498.67063993,0.00046575,120]
[394668244,1763850814146,-500.0,0.00046575,120]
[394668245,1763850814169,-500.0,0.00046575,120]
[394668246,1763850814193,-500.0,0.00046575,120]
[394668247,1763850814218,-514.47161602,0.00046575,120]
[394668248,1763850814241,-500.0,0.00046575,120]
[394668249,1763850814266,-535.91,0.00046575,120]
[394668250,1763850814290,-500.0,0.00046575,120]
[394668251,1763850814315,-500.0,0.00046575,120]
[394668252,1763850814339,-500.0,0.00046575,120]
[394668253,1763850814364,-500.0,0.00046575,120]
[394668254,1763850814388,-780.85,0.00046575,120]
[394668255,1763850814413,-500.0,0.00046575,120]
[394668256,1763850814437,-541.27541026,0.00046575,120]
[394668257,1763850814460,-500.0,0.00046575,120]
[394668258,1763850814485,-511.72981924,0.00046575,120]
[394668259,1763850814509,-500.0,0.00046575,120]
[394668260,1763850814534,-500.0,0.00046575,120]
[394668261,1763850814559,-500.0,0.00046575,120]
[394668262,1763850814583,-639.83422832,0.00046575,120]
[394668263,1763850814607,-500.0,0.00046575,120]
[394668264,1763850814631,-505.80354148,0.00046575,120]
[394668265,1763850814658,-500.0,0.00046575,120]
[394668266,1763850814681,-500.0,0.00046575,120]
[394668267,1763850814706,-509.31103245,0.00046575,120]
[394668268,1763850814732,-514.46200663,0.00046575,120]
[394668269,1763850814756,-500.0,0.00046575,120]
[394668270,1763850814780,-500.0,0.00046575,120]
[394668271,1763850814804,-500.0,0.00046575,120]
[394668272,1763850814828,-500.0,0.00046575,120]
[394668273,1763850814853,-552.83,0.00046575,120]
[394668274,1763850814877,-515.18475323,0.00046575,120]
[394668275,1763850814901,-622.31875333,0.00046575,60]
[394668276,1763850814925,-500.0,0.00046575,120]
[394668277,1763850814950,-506.51555776,0.00046575,120]
[394668278,1763850814974,-500.0,0.00046575,120]
[394668279,1763850815000,-500.0,0.00046575,120]
[394668280,1763850815026,-500.0,0.00046575,120]
[394668281,1763850815050,-514.03848496,0.00046575,120]
[394668282,1763850815074,-514.72155226,0.00046575,120]
[394668283,1763850815097,-508.66315838,0.00046575,120]
[394668284,1763850815120,-509.64862689,0.00046575,120]
[394668285,1763850815160,-500.0,0.00046575,120]
[394668286,1763850815187,-517.26709061,0.00046575,120]
[394668287,1763850815211,-500.0,0.00046575,120]
[394668288,1763850815236,-500.0,0.00046575,120]
[394668289,1763850815262,-502.58099013,0.00046575,120]
[394668290,1763850815288,-343.70319126,0.00046575,120]
[394668291,1763850815314,-502.70084975,0.00046575,120]
[394668292,1763850815340,-500.0,0.00046575,120]
[394668293,1763850815368,-517.11294221,0.00046575,120]
[394668294,1763850815393,-500.0,0.00046575,120]
[394668295,1763850815418,-507.89494168,0.00046575,120]
[394668296,1763850815443,-500.0,0.00046575,120]
[394668297,1763850815467,-500.0,0.00046575,120]
[394668298,1763850815492,-500.0,0.00046575,120]
[394668299,1763850815517,-500.0,0.00046575,120]
[394668300,1763850815541,-500.0,0.00046575,120]
[394668301,1763850815566,-500.0,0.00046575,120]
[394668302,1763850815590,-554.09,0.00046575,120]
[394668303,1763850815614,-500.0,0.00046575,120]
[394668304,1763850815641,-500.0,0.00046575,120]
[394668305,1763850815671,-500.0,0.00046575,120]
[394668306,1763850815696,-504.21723126,0.00046575,120]
[394668307,1763850815720,-1710.25,0.00046575,120]
[394668308,1763850815746,-500.0,0.00046575,120]
[394668309,1763850815771,-506.93717063,0.00046575,120]
[394668310,1763850815797,-500.0,0.00046575,120]
[394668311,1763850815822,-506.76863549,0.00046575,120]
[394668312,1763850815848,-500.0,0.00046575,120]
[394668313,1763850815878,-508.33534939,0.00046575,120]
[394668314,1763850815903,-1076.89,0.00046575,120]
[394668315,1763850815931,-1005.28,0.00046575,120]
[394668316,1763850815956,-500.0,0.00046575,120]
[394668317,1763850815982,-500.0,0.00046575,120]
[394668318,1763850816007,-3801.09,0.00046575,120]
[394668319,1763850816032,-500.0,0.00046575,120]
[394668320,1763850816058,-273.88068018,0.00046575,120]
[394668321,1763850816083,-500.0,0.00046575,120]
[394668322,1763850816107,-500.0,0.00046575,120]
[394668323,1763850816131,-516.25039065,0.00046575,120]
[394668324,1763850816157,-514.62762729,0.00046575,120]
[394668325,1763850816181,-500.0,0.00046575,120]
[394668326,1763850816207,-500.0,0.00046575,120]
[394668327,1763850816232,-500.0,0.00046575,120]
[394668328,1763850816258,-686.34,0.00046575,120]
[394668329,1763850816468,-512.42765881,0.00046575,120]
[394668330,1763850816496,-321.68623647,0.00046575,120]
[394668331,1763850816520,-500.0,0.00046575,120]
[394668332,1763850816545,-180.01158352,0.00046575,120]
[394668333,1763850816569,-2232.67,0.00046575,120]
[394668334,1763850816593,-522.97748237,0.00046575,120]
[394668335,1763850816617,-500.0,0.00046575,120]
[394668336,1763850816640,-210.92176445,0.00046575,120]
[394668337,1763850816669,-519.61337011,0.00046575,120]
[394668338,1763850816695,-504.73227379,0.00046575,120]
[394668339,1763850816720,-521.92,0.00046575,120]
[394668340,1763850816746,-524.67096288,0.00046575,120]
[394668341,1763850816771,-500.0,0.00046575,120]
[394668342,1763850816796,-500.0,0.00046575,120]
[394668343,1763850816820,-383.0568404,0.00046575,120]
[394668344,1763850816848,-1264.6,0.00046575,120]
[394668345,1763850816872,-500.0,0.00046575,120]
[394668346,1763850816898,-500.0,0.00046575,120]
[394668347,1763850816924,-500.0,0.00046575,120]
[394668348,1763850816949,-500.0,0.00046575,120]
[394668349,1763850816975,-513.28470497,0.00046575,120]
[394668350,1763850816999,-506.35638409,0.00046575,120]
[394668351,1763850817025,-500.0,0.00046575,120]
[394668352,1763850817049,-500.0,0.00046575,120]
[394668353,1763850817074,-500.0,0.00046575,120]
[394668354,1763850817098,-1901.1,0.00046575,120]
[394668355,1763850817123,-500.0,0.00046575,120]
[394668356,1763850817148,-388.91190901,0.00046575,120]
[394668357,1763850817172,-528.15327751,0.00046575,120]
[394668358,1763850817196,-500.0,0.00046575,120]
[394668359,1763850817220,-500.0,0.00046575,120]
[394668360,1763850817244,-500.0,0.00046575,120]
[394668361,1763850817270,-500.0,0.00046575,120]
[394668362,1763850817295,-387.82243959,0.00046575,120]
[394668363,1763850817319,-500.0,0.00046575,120]
[394668364,1763850817344,-500.0,0.00046575,120]
[394668365,1763850817368,-500.0,0.00046575,120]
[394668366,1763850817392,-510.47375546,0.00046575,120]
[394668367,1763850817417,-1238.65,0.00046575,120]
[394668368,1763850817441,-500.0,0.00046575,120]
[394668369,1763850817466,-500.0,0.00046575,120]
[394668370,1763850817490,-530.39730676,0.00046575,120]
[394668371,1763850817521,-282.18208689,0.00046575,120]
[394668372,1763850817547,-500.0,0.00046575,120]
[394668373,1763850817587,-507.77522046,0.00046575,120]
[394668374,1763850817617,-529.8798389,0.00046575,120]
[394668375,1763850817647,-500.0,0.00046575,120]
[394668376,1763850817680,-500.0,0.00046575,120]
[394668377,1763850817710,-804.85,0.00046575,120]
[394668378,1763850817740,-1318.33,0.00046575,120]
[394668379,1763850817767,-500.0,0.00046575,120]
[394668380,1763850817795,-500.0,0.00046575,120]
[394668381,1763850817826,-500.0,0.00046575,120]
[394668382,1763850817853,-509.91592697,0.00046575,120]
[394668383,1763850817880,-1073.9,0.00046575,120]
[394668384,1763850817908,-612.83,0.00046575,120]
[394668385,1763850817935,-520.36574419,0.00046575,120]
[394668386,1763850817962,-319.3707854,0.00046575,120]
[394668387,1763850817988,-504.32126578,0.00046575,120]
[394668388,1763850818015,-500.0,0.00046575,120]
[394668389,1763850818040,-500.0,0.00046575,120]
[394668390,1763850818067,-500.0,0.00046575,120]
[394668391,1763850818091,-520.84248695,0.00046575,120]
[394668392,1763850818116,-500.0,0.00046575,120]
[394668393,1763850818141,-554.17,0.00046575,120]
[394668394,1763850818167,-2068.32,0.00046575,120]
[394668395,1763850818192,-500.0,0.00046575,120]
[394668396,1763850818218,-500.0,0.00046575,120]
[394668397,1763850818243,-500.0,0.00046575,120]
[394668398,1763850818268,-1636.81,0.00046575,120]
[394668399,1763850818294,-576.1578064,0.00046575,120]
[394668400,1763850818324,-500.0,0.00046575,120]
[394668401,1763850818352,-3003.3,0.00046575,120]
[394668402,1763850818378,-539.83203747,0.00046575,120]
[394668403,1763850818405,-500.0,0.00046575,120]
[394668404,1763850818432,-500.0,0.00046575,120]
[394668405,1763850818460,-521.97750756,0.00046575,120]
[394668406,1763850818487,-777.56,0.00046575,120]
[394668407,1763850818513,-500.0,0.00046575,120]
[394668408,1763850818539,-500.0,0.00046575,120]
[394668409,1763850818566,-520.22359504,0.00046575,120]
[394668410,1763850818592,-282.08825029,0.00046575,120]
[394668411,1763850818618,-1907.76,0.00046575,120]
[394668412,1763850818646,-500.0,0.00046575,120]
[394668413,1763850818677,-500.0,0.00046575,120]
[394668414,1763850818704,-500.0,0.00046575,120]
[394668415,1763850818744,-500.0,0.00046575,120]
[394668416,1763850818770,-500.0,0.00046575,120]
[394668417,1763850818801,-560.43,0.00046575,120]
[394668418,1763850818828,-519.88883562,0.00046575,120]
[394668419,1763850818853,-500.0,0.00046575,120]
[394668420,1763850818879,-500.0,0.00046575,120]
[394668421,1763850818904,-500.0,0.00046575,120]
[394668422,1763850818931,-500.0,0.00046575,120]
[394668423,1763850818962,-526.2628472,0.00046575,120]
[394668424,1763850819189,-3975.59,0.00046575,120]
[394668425,1763850819219,-751.79,0.00046575,120]
[394668426,1763850819245,-500.0,0.00046575,120]
[394668427,1763850819271,-500.0,0.00046575,120]
[394668428,1763850819296,-500.0,0.00046575,120]
[394668429,1763850819321,-500.0,0.00046575,120]
[394668430,1763850819347,-542.13113849,0.00046575,120]
[394668431,1763850819373,-1269.02,0.00046575,120]
[394668432,1763850819399,-500.0,0.00046575,120]
[394668433,1763850819427,-500.0,0.00046575,120]
[394668434,1763850819453,-546.6159265,0.00046575,120]
[394668435,1763850819477,-753.83,0.00046575,120]
[394668436,1763850819502,-500.0,0.00046575,120]
[394668437,1763850819528,-500.0,0.00046575,120]
[394668438,1763850819553,-500.0,0.00046575,120]
[394668439,1763850819578,-1296.87,0.00046575,120]
[394668440,1763850819604,-500.0,0.00046575,120]
[394668441,1763850819629,-504.56699129,0.00046575,120]
[394668442,1763850819657,-1070.76,0.00046575,120]
[394668443,1763850819682,-500.0,0.00046575,120]
[394668444,1763850819707,-500.0,0.00046575,120]
[394668445,1763850819752,-500.0,0.00046575,120]
[394668446,1763850819778,-1117.81,0.00046575,120]
[394668447,1763850819803,-500.0,0.00046575,120]
[394668448,1763850819828,-548.03,0.00046575,120]
[394668449,1763850819857,-500.0,0.00046575,120]
[394668450,1763850819881,-500.0,0.00046575,120]
[394668451,1763850819908,-500.0,0.00046575,120]
[394668452,1763850819932,-541.12,0.00046575,120]
[394668453,1763850819956,-500.0,0.00046575,120]
[394668454,1763850819984,-500.0,0.00046575,120]
[394668455,1763850820008,-530.62084573,0.00046575,120]
[394668456,1763850820032,-513.47253043,0.00046575,120]
[394668457,1763850820057,-500.0,0.00046575,120]
[394668458,1763850820083,-1484.72,0.00046575,120]
[394668459,1763850820107,-856.8,0.00046575,120]
[394668460,1763850820130,-500.0,0.00046575,120]
[394668461,1763850820154,-500.0,0.00046575,120]
[394668462,1763850820178,-1509.89,0.00046575,120]
[394668463,1763850820202,-544.98376912,0.00046575,120]
[394668464,1763850820227,-578.33027722,0.00046575,120]
[394668465,1763850820250,-507.68955322,0.00046575,120]
[394668466,1763850820274,-500.0,0.00046575,120]
[394668467,1763850820298,-500.0,0.00046575,120]
[394668468,1763850820324,-343.52638961,0.00046575,120]
[394668469,1763850820348,-515.2701519,0.00046575,120]
[394668470,1763850820373,-500.0,0.00046575,120]
[394668471,1763850820401,-500.0,0.00046575,120]
[394668472,1763850820427,-500.0,0.00046575,120]
[394668473,1763850820452,-500.0,0.00046575,60]
[394668474,1763850820477,-639.41,0.00046575,120]
[394668475,1763850820503,-2168.89,0.00046575,120]
[394668476,1763850820528,-500.0,0.00046575,120]
[394668477,1763850820554,-2124.44,0.00046575,120]
[394668478,1763850820578,-516.57658964,0.00046575,120]
[394668479,1763850820604,-500.0,0.00046575,120]
[394668480,1763850820628,-500.0,0.00046575,120]
[394668481,1763850820658,-534.94,0.00046575,120]
[394668482,1763850820682,-500.0,0.00046575,120]
[394668483,1763850820707,-500.0,0.00046575,120]
[394668484,1763850820734,-500.0,0.00046575,120]
[394668485,1763850820760,-500.0,0.00046575,120]
[394668486,1763850820785,-500.0,0.00046575,120]
[394668487,1763850820810,-500.0,0.00046575,120]
[394668488,1763850820834,-534.84515141,0.00046575,120]
[394668489,1763850820859,-500.0,0.00046575,120]
[394668490,1763850820887,-625.69,0.00046575,120]
[394668491,1763850820911,-500.0,0.00046575,120]
[394668492,1763850820935,-500.0,0.00046575,120]
[394668493,1763850820961,-2260.36,0.00046575,120]
[394668494,1763850820988,-500.0,0.00046575,120]
[394668495,1763850821012,-500.0,0.00046575,120]
[394668496,1763850821036,-999.35,0.00046575,120]
[394668497,1763850821060,-181.44924134,0.00046575,120]
[394668498,1763850821085,-500.0,0.00046575,120]
[394668499,1763850821108,-500.0,0.00046575,120]
[394668500,1763850821132,-500.0,0.00046575,120]
[394668501,1763850821157,-500.0,0.00046575,120]
[394668502,1763850821184,-1841.69,0.00046575,120]
[394668503,1763850821211,-756.85,0.00046575,120]
[394668504,1763850821235,-500.0,0.00046575,30]
[394668505,1763850821258,-500.0,0.00046575,120]
[394668506,1763850821282,-500.0,0.00046575,120]
[394668507,1763850821305,-450.94801619,0.00046575,120]
[394668508,1763850821331,-838.95,0.00046575,120]
[394668509,1763850821356,-500.0,0.00046575,120]
[394668510,1763850821380,-473.12272468,0.00046575,120]
[394668511,1763850821405,-500.0,0.00046575,120]
[394668512,1763850821429,-500.0,0.00046575,120]
[394668513,1763850821454,-795.1,0.00046575,120]
[394668514,1763850821479,-1338.29,0.00046575,120]
[394668515,1763850821503,-2432.1,0.00046575,120]
[394668516,1763850821527,-500.0,0.00046575,120]
[394668517,1763850821551,-512.72038966,0.00046575,120]
[394668518,1763850821576,-500.0,0.00046575,120]
[394668519,1763850821724,-500.0,0.00046575,120]
[394668520,1763850821778,-500.0,0.00046575,120]
[394668521,1763850821805,-500.0,0.00046575,120]
[394668522,1763850821830,-500.0,0.00046575,120]
[394668523,1763850821856,-510.77,0.00046575,120]
[394668524,1763850821881,-519.36,0.00046575,120]
[394668525,1763850821907,-2210.59,0.00046575,120]
[394668526,1763850821932,-593.54240709,0.00046575,120]
[394668527,1763850821958,-1569.42,0.00046575,120]
[394668528,1763850821984,-2271.94,0.00046575,120]
[394668529,1763850822010,-500.0,0.00046575,120]
[394668530,1763850822034,-500.0,0.00046575,120]
[394668531,1763850822061,-312.25499534,0.00046575,120]
[394668532,1763850822087,-941.85,0.00046575,120]
[394668533,1763850822114,-416.09137594,0.00046575,120]
[394668534,1763850822140,-500.0,0.00046575,120]
[394668535,1763850822166,-500.0,0.00046575,120]
[394668536,1763850822192,-500.0,0.00046575,120]
[394668537,1763850822219,-1509.76,0.00046575,120]
[394668538,1763850822243,-500.0,0.00046575,120]
[394668539,1763850822269,-1296.16,0.00046575,120]
[394668540,1763850822293,-997.69,0.00046575,120]
[394668541,1763850822318,-579.12,0.00046575,120]
[394668542,1763850822342,-500.0,0.00046575,120]
[394668543,1763850822367,-500.0,0.00046575,120]
[394668544,1763850822394,-580.05,0.00046575,120]
[394668545,1763850822421,-500.0,0.00046575,120]
[394668546,1763850822448,-500.0,0.00046575,120]
[394668547,1763850822473,-500.0,0.00046575,120]
[394668548,1763850822497,-1829.26,0.00046575,120]
[394668549,1763850822521,-500.0,0.00046575,120]
[394668550,1763850822545,-500.0,0.00046575,120]
[394668551,1763850822568,-647.16,0.00046575,120]
[394668552,1763850822594,-500.0,0.00046575,120]
[394668553,1763850822618,-500.0,0.00046575,120]
[394668554,1763850822642,-500.0,0.00046575,120]
[394668555,1763850822671,-416.43601525,0.00046575,120]
[394668556,1763850822697,-500.0,0.00046575,120]
[394668557,1763850822724,-500.0,0.00046575,120]
[394668558,1763850822752,-500.0,0.00046575,120]
[394668559,1763850822779,-500.0,0.00046575,120]
[394668560,1763850822806,-3107.23,0.00046575,120]
[394668561,1763850822833,-579.10224987,0.00046575,120]
[394668562,1763850822862,-500.0,0.00046575,120]
[394668563,1763850822889,-4100.95,0.00046575,120]
[394668564,1763850822916,-500.0,0.00046575,120]
[394668565,1763850822941,-500.0,0.00046575,120]
[394668566,1763850822968,-500.0,0.00046575,120]
[394668567,1763850822993,-558.74,0.00046575,120]
[394668568,1763850823018,-287.11967537,0.00046575,120]
[394668569,1763850823043,-500.0,0.00046575,120]
[394668570,1763850823070,-500.0,0.00046575,120]
[394668571,1763850823094,-152.1799553,0.00046575,120]
[394668572,1763850823119,-500.0,0.00046575,120]
[394668573,1763850823143,-814.85,0.00046575,120]
[394668574,1763850823169,-508.86473548,0.00046575,120]
[394668575,1763850823194,-500.0,0.00046575,120]
[394668576,1763850823219,-500.0,0.00046575,120]
[394668577,1763850823260,-705.5,0.00046575,120]
[394668578,1763850823288,-545.85138621,0.00046575,120]
[394668579,1763850823317,-4856.33,0.00046575,120]
[394668580,1763850823344,-1994.12,0.00046575,120]
[394668581,1763850823372,-1154.21,0.00046575,120]
[394668582,1763850823398,-391.34271266,0.00046575,120]
[394668583,1763850823425,-500.0,0.00046575,120]
[394668584,1763850823451,-9668.64,0.00046575,120]
[394668585,1763850823477,-1753.8,0.00046575,120]
[394668586,1763850823504,-1574.88,0.00046575,120]
[394668587,1763850823529,-500.0,0.00046575,120]
[394668588,1763850823556,-585.64367901,0.00046575,120]
[394668589,1763850823581,-500.0,0.00046575,120]
[394668590,1763850823608,-500.0,0.00046575,120]
[394668591,1763850823634,-500.0,0.00046575,120]
[394668592,1763850823663,-1235.33,0.00046575,120]
[394668593,1763850823689,-572.05,0.00046575,120]
[394668594,1763850823715,-500.0,0.00046575,120]
[394668595,1763850823743,-500.0,0.00046575,120]
[394668596,1763850823771,-1187.0508306,0.00046575,30]
[394668597,1763850823798,-1514.98,0.00046575,120]
[394668598,1763850823826,-500.0,0.00046575,120]
[394668599,1763850823853,-500.0,0.00046575,120]
[394668600,1763850823879,-1441.86,0.00046575,120]
[394668601,1763850823906,-500.0,0.00046575,120]
[394668602,1763850823932,-537.71708657,0.00046575,120]
[394668603,1763850823958,-851.95,0.00046575,120]
[394668604,1763850823984,-721.3,0.00046575,120]
[394668605,1763850824016,-500.0,0.00046575,120]
[394668606,1763850824043,-4578.02,0.00046575,120]
[394668607,1763850824071,-500.0,0.00046575,120]
[394668608,1763850824100,-2830.56,0.00046575,120]
[394668609,1763850824126,-645.71,0.00046575,120]
[394668610,1763850824152,-500.0,0.00046575,120]
[394668611,1763850824178,-500.0,0.00046575,120]
[394668612,1763850824204,-500.0,0.00046575,120]
[394668613,1763850824230,-500.0,0.00046849,120]
[394668614,1763850824255,-533.13285151,0.00046849,120]
[394668615,1763850824476,-500.0,0.00046849,120]
[394668616,1763850824503,-565.81160912,0.00046849,120]
[394668617,1763850824529,-500.0,0.00046849,120]
[394668618,1763850824554,-500.0,0.00046849,120]
[394668619,1763850824579,-457.19489115,0.00046849,120]
[394668620,1763850824603,-1000.0,0.00046849,30]
[394668621,1763850824630,-608.91855354,0.00046849,120]